[Event "Late-Titled-Tuesday-Blitz-February-13-2024"]
[Site "Chess.com"]
[Date "2024.02.13"]
[Round "2"]
[White "AlexeiShirov"]
[Black "Pelopidass"]
[Result "1-0"]
[WhiteElo "2867"]
[BlackElo "2565"]
[TimeControl "180+1"]
[EndTime "14:16:53 PST"]
[Termination "AlexeiShirov won on time"]

1. e4 {[%clk 0:03:00.9]} 1... e6 {[%clk 0:02:59.9]} 2. d4 {[%clk 0:02:59.9]}
2... d5 {[%clk 0:03:00.8]} 3. e5 {[%clk 0:03:00.3]} 3... c5 {[%clk 0:03:00.4]}
4. c3 {[%clk 0:03:00.2]} 4... Ne7 {[%clk 0:03:01]} 5. Nf3 {[%clk 0:02:58.2]}
5... Nec6 {[%clk 0:03:01.4]} 6. Bd3 {[%clk 0:02:53.3]} 6... b6 {[%clk
0:02:59.3]} 7. O-O {[%clk 0:02:47.4]} 7... Ba6 {[%clk 0:02:58.5]} 8. Bxa6 {[%clk
0:02:41]} 8... Nxa6 {[%clk 0:02:59.4]} 9. Ng5 {[%clk 0:02:40.8]} 9... Be7 {[%clk
0:02:39.5]} 10. Qh5 {[%clk 0:02:37.2]} 10... Bxg5 {[%clk 0:02:30]} 11. Bxg5
{[%clk 0:02:35.9]} 11... Qd7 {[%clk 0:02:30.1]} 12. Rd1 {[%clk 0:02:31.6]} 12...
cxd4 {[%clk 0:02:19.5]} 13. cxd4 {[%clk 0:02:30.3]} 13... Rc8 {[%clk 0:02:20.1]}
14. Nc3 {[%clk 0:02:29.8]} 14... Na5 {[%clk 0:02:14.5]} 15. Rd3 {[%clk
0:02:18.5]} 15... Nc4 {[%clk 0:02:14.5]} 16. b3 {[%clk 0:02:16.7]} 16... Na3
{[%clk 0:02:05.9]} 17. Bh4 {[%clk 0:02:05.9]} 17... Nb4 {[%clk 0:01:44.8]} 18.
Rg3 {[%clk 0:02:04.3]} 18... h6 {[%clk 0:00:40.7]} 19. Rd1 {[%clk 0:01:41.8]}
19... g6 {[%clk 0:00:21.3]} 20. Qe2 {[%clk 0:01:38]} 20... g5 {[%clk 0:00:21.5]}
21. Qh5 {[%clk 0:01:10.5]} 21... gxh4 {[%clk 0:00:20.8]} 22. Qxh4 {[%clk
0:01:10.8]} 22... Qe7 {[%clk 0:00:19.6]} 23. Qh5 {[%clk 0:01:08.4]} 23... Kd7
{[%clk 0:00:18.2]} 24. Ne2 {[%clk 0:01:03.4]} 24... Rc2 {[%clk 0:00:15.8]} 25.
Rg7 {[%clk 0:01:01]} 25... Rf8 {[%clk 0:00:14.6]} 26. Nf4 {[%clk 0:01:01.1]}
26... Nxa2 {[%clk 0:00:13.3]} 27. Ng6 {[%clk 0:01:00.4]} 27... fxg6 {[%clk
0:00:08.8]} 28. Rxe7+ {[%clk 0:00:59.1]} 28... Kxe7 {[%clk 0:00:09.7]} 29. Qxh6
{[%clk 0:00:56.4]} 29... Rfxf2 {[%clk 0:00:10.6]} 30. Qxg6 {[%clk 0:00:54.5]}
30... Nc3 {[%clk 0:00:09.6]} 31. Ra1 {[%clk 0:00:43.6]} 31... Ne2+ {[%clk
0:00:02.3]} 32. Kxf2 {[%clk 0:00:41.9]} 32... Nf4+ {[%clk 0:00:02.3]} 33. Qxc2
{[%clk 0:00:42.1]} 33... Nxc2 {[%clk 0:00:03.2]} 34. Rxa7+ {[%clk 0:00:41.7]}
34... Ke8 {[%clk 0:00:03.1]} 35. h4 {[%clk 0:00:38]} 1-0

[Event "Late-Titled-Tuesday-Blitz-February-13-2024"]
[Site "Chess.com"]
[Date "2024.02.13"]
[Round "2"]
[White "Teidi96"]
[Black "koncheto"]
[Result "1-0"]
[WhiteElo "2275"]
[BlackElo "2493"]
[TimeControl "180+1"]
[EndTime "14:16:53 PST"]
[Termination "Teidi96 won by resignation"]

1. e4 {[%clk 0:03:00.9]} 1... e5 {[%clk 0:02:11.3]} 2. Nf3 {[%clk 0:03:00.1]}
2... Nf6 {[%clk 0:02:09.2]} 3. d4 {[%clk 0:02:59.6]} 3... Nxe4 {[%clk
0:02:01.9]} 4. Bd3 {[%clk 0:03:00]} 4... d5 {[%clk 0:02:00.5]} 5. Nxe5 {[%clk
0:03:00.2]} 5... Bd6 {[%clk 0:01:58.2]} 6. O-O {[%clk 0:02:59.3]} 6... O-O
{[%clk 0:01:56.7]} 7. Re1 {[%clk 0:02:59.8]} 7... Nf6 {[%clk 0:01:47.1]} 8. Bg5
{[%clk 0:02:57.9]} 8... h6 {[%clk 0:01:42.7]} 9. Bh4 {[%clk 0:02:58.1]} 9...
Nbd7 {[%clk 0:01:42.1]} 10. Nxd7 {[%clk 0:02:56.8]} 10... Bxd7 {[%clk 0:01:41]}
11. Qf3 {[%clk 0:02:49.1]} 11... c6 {[%clk 0:01:39.5]} 12. Bxf6 {[%clk
0:02:46.7]} 12... Qxf6 {[%clk 0:01:39.4]} 13. Qxf6 {[%clk 0:02:46.6]} 13... gxf6
{[%clk 0:01:40.3]} 14. Nd2 {[%clk 0:02:45.7]} 14... Rfe8 {[%clk 0:01:39.9]} 15.
g3 {[%clk 0:02:44.4]} 15... b6 {[%clk 0:01:31.7]} 16. c3 {[%clk 0:02:44.4]}
16... c5 {[%clk 0:01:31.4]} 17. dxc5 {[%clk 0:02:39.4]} 17... bxc5 {[%clk
0:01:27.4]} 18. b3 {[%clk 0:02:39.3]} 18... a5 {[%clk 0:01:25.7]} 19. c4 {[%clk
0:02:32.2]} 19... Be5 {[%clk 0:01:15.1]} 20. Rad1 {[%clk 0:02:31.1]} 20... Bc6
{[%clk 0:01:14.7]} 21. cxd5 {[%clk 0:02:27.4]} 21... Bxd5 {[%clk 0:01:14.6]} 22.
Be4 {[%clk 0:02:23.3]} 22... Rad8 {[%clk 0:01:09.3]} 23. Bxd5 {[%clk 0:02:22.5]}
23... Rxd5 {[%clk 0:01:09.6]} 24. Nc4 {[%clk 0:02:22.8]} 24... Rxd1 {[%clk
0:00:57.5]} 25. Rxd1 {[%clk 0:02:23.2]} 25... Ra8 {[%clk 0:00:58.1]} 26. Nxe5
{[%clk 0:02:20.7]} 26... fxe5 {[%clk 0:00:57.9]} 27. Rd5 {[%clk 0:02:21.4]}
27... a4 {[%clk 0:00:58]} 28. Rxc5 {[%clk 0:02:17.1]} 28... axb3 {[%clk
0:00:55.5]} 29. axb3 {[%clk 0:02:16.8]} 29... Ra1+ {[%clk 0:00:54.5]} 30. Kg2
{[%clk 0:02:16.8]} 30... Rb1 {[%clk 0:00:55.4]} 31. Rc3 {[%clk 0:02:07.8]} 31...
Kg7 {[%clk 0:00:55.5]} 32. Kf3 {[%clk 0:02:07.6]} 32... Rb2 {[%clk 0:00:54.6]}
33. h4 {[%clk 0:02:06.4]} 33... Kg6 {[%clk 0:00:52.2]} 34. Ke3 {[%clk
0:02:04.8]} 34... h5 {[%clk 0:00:51.3]} 35. Ke4 {[%clk 0:01:53.6]} 35... f6
{[%clk 0:00:49.1]} 36. Rf3 {[%clk 0:01:46.9]} 36... Re2+ {[%clk 0:00:45.6]} 37.
Kd3 {[%clk 0:01:41.6]} 37... Rb2 {[%clk 0:00:43.3]} 38. Kc3 {[%clk 0:01:40.9]}
38... Rb1 {[%clk 0:00:42.4]} 39. b4 {[%clk 0:01:40.1]} 39... Kf7 {[%clk
0:00:41.6]} 40. Kc4 {[%clk 0:01:39.7]} 40... Ke6 {[%clk 0:00:40.9]} 41. Kc5
{[%clk 0:01:39.1]} 41... Rc1+ {[%clk 0:00:41]} 42. Kb6 {[%clk 0:01:38.9]} 42...
Kd5 {[%clk 0:00:39.9]} 43. Rxf6 {[%clk 0:01:35.2]} 43... e4 {[%clk 0:00:22.4]}
44. b5 {[%clk 0:01:32.5]} 44... Ke5 {[%clk 0:00:15.9]} 45. Rc6 {[%clk
0:01:25.2]} 45... Rf1 {[%clk 0:00:15.5]} 46. Rc2 {[%clk 0:01:25.1]} 46... Kd4
{[%clk 0:00:16.2]} 47. Kc7 {[%clk 0:01:22.7]} 47... Kd3 {[%clk 0:00:15]} 48. Ra2
{[%clk 0:01:22.3]} 48... Rc1+ {[%clk 0:00:15.4]} 49. Kb7 {[%clk 0:01:20.4]}
49... Rc5 {[%clk 0:00:06.4]} 50. b6 {[%clk 0:01:19.5]} 50... Rc2 {[%clk
0:00:02.5]} 51. Rxc2 {[%clk 0:01:18.3]} 51... Kxc2 {[%clk 0:00:03.4]} 52. Kc6
{[%clk 0:01:18.5]} 52... Kd3 {[%clk 0:00:04.3]} 53. b7 {[%clk 0:01:18.9]} 53...
e3 {[%clk 0:00:05.2]} 54. fxe3 {[%clk 0:01:18.5]} 1-0

[Event "Late-Titled-Tuesday-Blitz-February-13-2024"]
[Site "Chess.com"]
[Date "2024.02.13"]
[Round "2"]
[White "VladimirBugayev"]
[Black "cthake"]
[Result "1-0"]
[WhiteElo "2399"]
[BlackElo "1805"]
[TimeControl "180+1"]
[EndTime "14:16:57 PST"]
[Termination "VladimirBugayev won by resignation"]

1. e4 {[%clk 0:03:00.9]} 1... c5 {[%clk 0:02:59.3]} 2. Nc3 {[%clk 0:02:59.6]}
2... a6 {[%clk 0:02:57.8]} 3. g3 {[%clk 0:02:59.1]} 3... d6 {[%clk 0:02:55.2]}
4. Bg2 {[%clk 0:02:58.8]} 4... Nc6 {[%clk 0:02:54.4]} 5. d3 {[%clk 0:02:55.7]}
5... g6 {[%clk 0:02:54.5]} 6. h4 {[%clk 0:02:51.6]} 6... Bg7 {[%clk 0:02:54.3]}
7. h5 {[%clk 0:02:51]} 7... Nf6 {[%clk 0:02:45.3]} 8. h6 {[%clk 0:02:51.1]} 8...
Bf8 {[%clk 0:02:44.5]} 9. f3 {[%clk 0:02:42.6]} 9... Nd4 {[%clk 0:02:43.6]} 10.
g4 {[%clk 0:02:41.7]} 10... Bd7 {[%clk 0:02:40]} 11. g5 {[%clk 0:02:38.9]} 11...
Nh5 {[%clk 0:02:37.7]} 12. Nce2 {[%clk 0:02:39.4]} 12... Nxe2 {[%clk 0:02:30.4]}
13. Nxe2 {[%clk 0:02:39]} 13... e5 {[%clk 0:02:28.6]} 14. c3 {[%clk 0:02:29.8]}
14... b5 {[%clk 0:02:28.1]} 15. Be3 {[%clk 0:02:29.5]} 15... Be7 {[%clk
0:02:26.4]} 16. Qd2 {[%clk 0:02:28.6]} 16... Rb8 {[%clk 0:02:25.1]} 17. d4
{[%clk 0:02:28.3]} 17... cxd4 {[%clk 0:02:15.2]} 18. cxd4 {[%clk 0:02:28.1]}
18... Rf8 {[%clk 0:01:56.5]} 19. dxe5 {[%clk 0:02:13.9]} 19... dxe5 {[%clk
0:01:56.3]} 20. Kf2 {[%clk 0:02:07.5]} 20... f5 {[%clk 0:01:47.3]} 21. exf5
{[%clk 0:02:03.5]} 21... Bxf5 {[%clk 0:01:45.4]} 22. Qxd8+ {[%clk 0:01:57.3]}
22... Rxd8 {[%clk 0:01:44]} 23. Rhd1 {[%clk 0:01:49.4]} 23... Kf7 {[%clk
0:01:35.2]} 24. Nc3 {[%clk 0:01:39.5]} 24... Be6 {[%clk 0:01:30.9]} 25. Ne4
{[%clk 0:01:36.7]} 25... Nf4 {[%clk 0:01:26.8]} 26. Bxf4 {[%clk 0:01:36.8]}
26... exf4 {[%clk 0:01:26.5]} 27. b3 {[%clk 0:01:27.3]} 27... Bf5 {[%clk
0:01:22.8]} 28. Rxd8 {[%clk 0:01:21]} 28... Rxd8 {[%clk 0:01:21.9]} 29. Rc1
{[%clk 0:01:16.3]} 29... Bxe4 {[%clk 0:01:18.2]} 30. fxe4 {[%clk 0:01:16.6]}
30... Bxg5 {[%clk 0:01:18.3]} 31. Rc7+ {[%clk 0:01:09.4]} 31... Be7 {[%clk
0:01:17.8]} 32. Ke2 {[%clk 0:01:09.6]} 32... g5 {[%clk 0:01:15.9]} 33. Bh3
{[%clk 0:01:09.2]} 33... Rd4 {[%clk 0:01:11.3]} 34. Bf5 {[%clk 0:01:08.8]} 34...
g4 {[%clk 0:01:04.9]} 35. Bxh7 {[%clk 0:00:59.2]} 35... f3+ {[%clk 0:00:49.7]}
36. Ke3 {[%clk 0:00:58.4]} 36... f2 {[%clk 0:00:45.7]} 37. Kxf2 {[%clk
0:00:57.4]} 37... Rd2+ {[%clk 0:00:45.9]} 38. Ke3 {[%clk 0:00:55.9]} 38... Rxa2
{[%clk 0:00:45.7]} 39. Bf5 {[%clk 0:00:55.7]} 39... g3 {[%clk 0:00:44.2]} 40. h7
{[%clk 0:00:51.2]} 40... Rh2 {[%clk 0:00:43.2]} 41. Kf3 {[%clk 0:00:51]} 41...
g2 {[%clk 0:00:42.4]} 42. Kf2 {[%clk 0:00:51.4]} 42... Kf6 {[%clk 0:00:36]} 43.
Kg1 {[%clk 0:00:49.2]} 43... Bd8 {[%clk 0:00:09.3]} 44. Rc6+ {[%clk 0:00:47.8]}
1-0

[Event "Late-Titled-Tuesday-Blitz-February-13-2024"]
[Site "Chess.com"]
[Date "2024.02.13"]
[Round "2"]
[White "LiamPutnam2008"]
[Black "GM4life"]
[Result "1-0"]
[WhiteElo "2839"]
[BlackElo "2543"]
[TimeControl "180+1"]
[EndTime "14:17:00 PST"]
[Termination "LiamPutnam2008 won by checkmate"]

1. d4 {[%clk 0:03:00.9]} 1... Nf6 {[%clk 0:02:59.1]} 2. c4 {[%clk 0:03:00.5]}
2... g6 {[%clk 0:02:59.8]} 3. Nc3 {[%clk 0:02:58.9]} 3... Bg7 {[%clk 0:03:00.7]}
4. e4 {[%clk 0:02:54.8]} 4... d6 {[%clk 0:03:01.6]} 5. f3 {[%clk 0:02:54.8]}
5... O-O {[%clk 0:03:02.5]} 6. Nge2 {[%clk 0:02:55.2]} 6... Nbd7 {[%clk
0:03:02.7]} 7. Ng3 {[%clk 0:02:51.5]} 7... h5 {[%clk 0:03:01]} 8. Bg5 {[%clk
0:02:50.4]} 8... Nh7 {[%clk 0:03:00.9]} 9. Be3 {[%clk 0:02:48.5]} 9... a6 {[%clk
0:02:59.4]} 10. Qd2 {[%clk 0:02:48.4]} 10... h4 {[%clk 0:02:58.1]} 11. Nge2
{[%clk 0:02:48]} 11... c5 {[%clk 0:02:57]} 12. Bh6 {[%clk 0:02:16.8]} 12... cxd4
{[%clk 0:02:35.5]} 13. Bxg7 {[%clk 0:02:16.4]} 13... Kxg7 {[%clk 0:02:35.1]} 14.
Nxd4 {[%clk 0:02:15.3]} 14... Nhf6 {[%clk 0:02:16.6]} 15. Be2 {[%clk 0:02:09.6]}
15... Qb6 {[%clk 0:02:12.6]} 16. O-O-O {[%clk 0:01:55.6]} 16... Ne5 {[%clk
0:02:01.9]} 17. Kb1 {[%clk 0:01:52.3]} 17... Be6 {[%clk 0:01:58.8]} 18. f4
{[%clk 0:01:39]} 18... Nc6 {[%clk 0:01:56.3]} 19. Nxe6+ {[%clk 0:01:16.5]} 19...
fxe6 {[%clk 0:01:57.2]} 20. f5 {[%clk 0:01:01.8]} 20... Ne5 {[%clk 0:01:33.5]}
21. Rhf1 {[%clk 0:00:47.1]} 21... Rac8 {[%clk 0:01:18.9]} 22. Qg5 {[%clk
0:00:27.7]} 22... exf5 {[%clk 0:00:54.8]} 23. exf5 {[%clk 0:00:23.2]} 23... Qc5
{[%clk 0:00:52.8]} 24. fxg6 {[%clk 0:00:20.3]} 24... Nxc4 {[%clk 0:00:50.1]} 25.
Qxh4 {[%clk 0:00:17.6]} 25... Nxb2 {[%clk 0:00:33]} 26. Rxf6 {[%clk 0:00:13.1]}
26... Qxc3 {[%clk 0:00:15.1]} 27. Rf7+ {[%clk 0:00:09.3]} 27... Rxf7 {[%clk
0:00:11.2]} 28. Qh7+ {[%clk 0:00:09.5]} 28... Kf6 {[%clk 0:00:08.6]} 29. Qxf7+
{[%clk 0:00:10.1]} 29... Kg5 {[%clk 0:00:08.9]} 30. h4+ {[%clk 0:00:09.8]} 30...
Kxh4 {[%clk 0:00:07.5]} 31. Qf4# {[%clk 0:00:09.6]} 1-0

[Event "Late-Titled-Tuesday-Blitz-February-13-2024"]
[Site "Chess.com"]
[Date "2024.02.13"]
[Round "2"]
[White "kikoveiga"]
[Black "FM_Kappeler"]
[Result "1-0"]
[WhiteElo "2510"]
[BlackElo "2261"]
[TimeControl "180+1"]
[EndTime "14:17:02 PST"]
[Termination "kikoveiga won on time"]

1. c4 {[%clk 0:03:00.9]} 1... e6 {[%clk 0:02:59.4]} 2. d4 {[%clk 0:02:59.9]}
2... Nf6 {[%clk 0:02:58.4]} 3. Nc3 {[%clk 0:03:00.5]} 3... Bb4 {[%clk
0:02:57.5]} 4. e3 {[%clk 0:02:59.2]} 4... O-O {[%clk 0:02:55.2]} 5. Bd3 {[%clk
0:02:59.1]} 5... d5 {[%clk 0:02:54.5]} 6. Ne2 {[%clk 0:02:59.3]} 6... dxc4
{[%clk 0:02:51.6]} 7. Bxc4 {[%clk 0:03:00.2]} 7... c5 {[%clk 0:02:51.2]} 8. dxc5
{[%clk 0:02:57.5]} 8... Qxd1+ {[%clk 0:02:47.2]} 9. Kxd1 {[%clk 0:02:58.4]} 9...
Bxc5 {[%clk 0:02:47.1]} 10. a3 {[%clk 0:02:47.7]} 10... b6 {[%clk 0:02:36.3]}
11. b4 {[%clk 0:02:47]} 11... Be7 {[%clk 0:02:35.8]} 12. Bb2 {[%clk 0:02:46.8]}
12... Bb7 {[%clk 0:02:35.5]} 13. f3 {[%clk 0:02:46.4]} 13... Rd8+ {[%clk
0:02:29]} 14. Kc2 {[%clk 0:02:46]} 14... Nbd7 {[%clk 0:02:22.4]} 15. Rad1 {[%clk
0:02:44.3]} 15... Rac8 {[%clk 0:02:21.7]} 16. Bb3 {[%clk 0:02:40.1]} 16... Ne5
{[%clk 0:02:09]} 17. Rxd8+ {[%clk 0:02:38.5]} 17... Bxd8 {[%clk 0:02:08.6]} 18.
Rd1 {[%clk 0:02:39.4]} 18... Be7 {[%clk 0:01:59]} 19. Kb1 {[%clk 0:02:30.6]}
19... Nc4 {[%clk 0:01:56.4]} 20. Bc1 {[%clk 0:02:23.5]} 20... a5 {[%clk
0:01:51.3]} 21. Rd4 {[%clk 0:02:11.6]} 21... axb4 {[%clk 0:01:31.9]} 22. Rxc4
{[%clk 0:02:11]} 22... Rxc4 {[%clk 0:01:21.5]} 23. Bxc4 {[%clk 0:02:11.9]} 23...
bxc3 {[%clk 0:01:21.6]} 24. Nxc3 {[%clk 0:02:12.3]} 24... Bd6 {[%clk 0:01:11.1]}
25. h3 {[%clk 0:02:09]} 25... h5 {[%clk 0:01:09.2]} 26. Kc2 {[%clk 0:02:08.7]}
26... h4 {[%clk 0:01:05.2]} 27. Nb5 {[%clk 0:02:05.6]} 27... Bc5 {[%clk
0:00:55.1]} 28. Kd3 {[%clk 0:01:51.9]} 28... Nd7 {[%clk 0:00:30.8]} 29. Bb2
{[%clk 0:01:51]} 29... Bc6 {[%clk 0:00:23.8]} 30. a4 {[%clk 0:01:49.9]} 30...
Bb4 {[%clk 0:00:20.6]} 31. Bd4 {[%clk 0:01:32.7]} 31... Nc5+ {[%clk 0:00:20.3]}
32. Kc2 {[%clk 0:01:27.8]} 32... Ba5 {[%clk 0:00:14.4]} 33. Bb3 {[%clk 0:01:21]}
33... Nxb3 {[%clk 0:00:13.6]} 34. Kxb3 {[%clk 0:01:21.2]} 34... f6 {[%clk
0:00:13.7]} 35. e4 {[%clk 0:01:14.8]} 35... Kf7 {[%clk 0:00:13.2]} 36. Nd6+
{[%clk 0:01:14.1]} 36... Ke7 {[%clk 0:00:12.9]} 37. Nc4 {[%clk 0:01:15]} 37...
e5 {[%clk 0:00:09.2]} 38. Bxb6 {[%clk 0:01:14.1]} 38... Be1 {[%clk 0:00:09]} 39.
a5 {[%clk 0:01:04.6]} 39... Bb5 {[%clk 0:00:09.2]} 40. Be3 {[%clk 0:00:59.4]}
40... Bxc4+ {[%clk 0:00:08.6]} 41. Kxc4 {[%clk 0:00:59.3]} 41... Bxa5 {[%clk
0:00:09.1]} 42. Bf2 {[%clk 0:00:59.5]} 42... g5 {[%clk 0:00:08.1]} 43. Kd5
{[%clk 0:01:00.2]} 43... Bb4 {[%clk 0:00:07.8]} 44. Bc5+ {[%clk 0:00:57.6]}
44... Bxc5 {[%clk 0:00:06.6]} 45. Kxc5 {[%clk 0:00:58.5]} 45... Ke6 {[%clk
0:00:03.4]} 46. Kc6 {[%clk 0:00:58.4]} 46... Ke7 {[%clk 0:00:03.6]} 47. Kc7
{[%clk 0:00:57.1]} 47... Ke6 {[%clk 0:00:02.2]} 48. Kd8 {[%clk 0:00:57.6]} 1-0

[Event "Late-Titled-Tuesday-Blitz-February-13-2024"]
[Site "Chess.com"]
[Date "2024.02.13"]
[Round "2"]
[White "HansOnTwitch"]
[Black "tdf98pantani"]
[Result "1-0"]
[WhiteElo "3158"]
[BlackElo "2685"]
[TimeControl "180+1"]
[EndTime "14:17:05 PST"]
[Termination "HansOnTwitch won by resignation"]

1. e4 {[%clk 0:03:00.9]} 1... e5 {[%clk 0:02:59.4]} 2. Nf3 {[%clk 0:03:00.2]}
2... Nc6 {[%clk 0:02:59.5]} 3. Bc4 {[%clk 0:03:00.8]} 3... Bc5 {[%clk
0:02:58.1]} 4. d3 {[%clk 0:03:01.1]} 4... d6 {[%clk 0:02:57.7]} 5. O-O {[%clk
0:03:01.3]} 5... Nf6 {[%clk 0:02:54.8]} 6. c3 {[%clk 0:03:01.5]} 6... Bb6 {[%clk
0:02:53.2]} 7. Re1 {[%clk 0:03:01.1]} 7... h6 {[%clk 0:02:51.2]} 8. Nbd2 {[%clk
0:02:59.1]} 8... Ne7 {[%clk 0:02:48.8]} 9. a4 {[%clk 0:02:59.2]} 9... a5 {[%clk
0:02:48]} 10. d4 {[%clk 0:02:53]} 10... Ng6 {[%clk 0:02:45.8]} 11. h3 {[%clk
0:02:53.3]} 11... O-O {[%clk 0:02:45.6]} 12. Bf1 {[%clk 0:02:52.6]} 12... c6
{[%clk 0:02:43.9]} 13. Nc4 {[%clk 0:02:46.8]} 13... Bc7 {[%clk 0:02:43.9]} 14.
dxe5 {[%clk 0:02:46.4]} 14... dxe5 {[%clk 0:02:40.7]} 15. Qc2 {[%clk 0:02:43.2]}
15... Be6 {[%clk 0:02:30]} 16. Be3 {[%clk 0:02:42.4]} 16... b5 {[%clk
0:02:26.8]} 17. Red1 {[%clk 0:02:38.7]} 17... Qe7 {[%clk 0:02:24.7]} 18. Na3
{[%clk 0:02:32.7]} 18... b4 {[%clk 0:02:23.5]} 19. cxb4 {[%clk 0:02:10.9]} 19...
axb4 {[%clk 0:02:23.5]} 20. Nc4 {[%clk 0:02:10.7]} 20... Nd7 {[%clk 0:02:08.8]}
21. b3 {[%clk 0:02:06.2]} 21... f5 {[%clk 0:01:45.2]} 22. Rac1 {[%clk
0:01:56.5]} 22... f4 {[%clk 0:01:35.7]} 23. Bd2 {[%clk 0:01:55.8]} 23... Nh4
{[%clk 0:01:30.8]} 24. Nxh4 {[%clk 0:01:24.8]} 24... Qxh4 {[%clk 0:01:30.7]} 25.
Nb2 {[%clk 0:01:24.7]} 25... Bb6 {[%clk 0:01:16.2]} 26. Bxb4 {[%clk 0:01:23.7]}
26... Rf6 {[%clk 0:01:11.6]} 27. Be7 {[%clk 0:01:21.4]} 27... Bxh3 {[%clk
0:01:05]} 28. Bxf6 {[%clk 0:01:17.7]} 28... Nxf6 {[%clk 0:01:04.4]} 29. gxh3
{[%clk 0:01:15.1]} 29... Nxe4 {[%clk 0:01:02.2]} 30. Nd3 {[%clk 0:00:52.4]}
30... Bd4 {[%clk 0:00:39.7]} 31. Qxc6 {[%clk 0:00:28]} 31... Bxf2+ {[%clk
0:00:27.6]} 32. Kh1 {[%clk 0:00:27.1]} 32... f3 {[%clk 0:00:11]} 33. Qe6+ {[%clk
0:00:20.4]} 33... Kh8 {[%clk 0:00:09.5]} 34. Qg4 {[%clk 0:00:21.3]} 34... Qf6
{[%clk 0:00:06.9]} 35. Qxe4 {[%clk 0:00:20.8]} 1-0

[Event "Late-Titled-Tuesday-Blitz-February-13-2024"]
[Site "Chess.com"]
[Date "2024.02.13"]
[Round "2"]
[White "sergiochess83"]
[Black "tgpgoat"]
[Result "1-0"]
[WhiteElo "2853"]
[BlackElo "2553"]
[TimeControl "180+1"]
[EndTime "14:17:08 PST"]
[Termination "sergiochess83 won by resignation"]

1. d4 {[%clk 0:02:52.5]} 1... Nf6 {[%clk 0:02:58.6]} 2. c4 {[%clk 0:02:52.5]}
2... e6 {[%clk 0:02:56.3]} 3. g3 {[%clk 0:02:52.2]} 3... d5 {[%clk 0:02:55.4]}
4. Bg2 {[%clk 0:02:52.3]} 4... Be7 {[%clk 0:02:55.6]} 5. Nf3 {[%clk 0:02:52.6]}
5... O-O {[%clk 0:02:55.8]} 6. Qc2 {[%clk 0:02:53.2]} 6... b6 {[%clk 0:02:55.2]}
7. cxd5 {[%clk 0:02:52.6]} 7... exd5 {[%clk 0:02:54.8]} 8. O-O {[%clk
0:02:52.6]} 8... Bb7 {[%clk 0:02:55]} 9. Nc3 {[%clk 0:02:50.7]} 9... c5 {[%clk
0:02:55]} 10. Bg5 {[%clk 0:02:46]} 10... Nc6 {[%clk 0:02:52.5]} 11. Rad1 {[%clk
0:02:42.1]} 11... cxd4 {[%clk 0:02:29.1]} 12. Nxd4 {[%clk 0:02:40]} 12... Nxd4
{[%clk 0:02:29]} 13. Rxd4 {[%clk 0:02:40]} 13... Rc8 {[%clk 0:02:22]} 14. Qb3
{[%clk 0:02:20.1]} 14... h6 {[%clk 0:02:18.4]} 15. Bf4 {[%clk 0:01:52.9]} 15...
Bc5 {[%clk 0:01:39.8]} 16. Rdd1 {[%clk 0:01:45.8]} 16... Qe7 {[%clk 0:01:14.8]}
17. h4 {[%clk 0:00:28.9]} 17... d4 {[%clk 0:01:14.3]} 18. Bxb7 {[%clk
0:00:27.8]} 18... Qxb7 {[%clk 0:01:13.9]} 19. Nb5 {[%clk 0:00:28.5]} 19... Rfd8
{[%clk 0:00:44.4]} 20. Be5 {[%clk 0:00:26.7]} 20... a6 {[%clk 0:00:28.9]} 21.
Bxf6 {[%clk 0:00:22.8]} 21... axb5 {[%clk 0:00:25.6]} 22. Bxd8 {[%clk 0:00:22]}
22... Rxd8 {[%clk 0:00:25.6]} 23. Qxb5 {[%clk 0:00:22.2]} 23... Qe4 {[%clk
0:00:20.4]} 24. b4 {[%clk 0:00:20.6]} 24... Bd6 {[%clk 0:00:19.9]} 25. Qxb6
{[%clk 0:00:19.5]} 25... Rd7 {[%clk 0:00:16.3]} 26. Qxd4 {[%clk 0:00:19.2]}
26... Qg6 {[%clk 0:00:15.8]} 27. Qd3 {[%clk 0:00:17.9]} 27... Qf6 {[%clk
0:00:15.6]} 28. Qf3 {[%clk 0:00:13.1]} 28... Qb2 {[%clk 0:00:11]} 29. Qc6 {[%clk
0:00:08.9]} 29... Rc7 {[%clk 0:00:03.6]} 30. Qxd6 {[%clk 0:00:08.8]} 1-0

[Event "Late-Titled-Tuesday-Blitz-February-13-2024"]
[Site "Chess.com"]
[Date "2024.02.13"]
[Round "2"]
[White "ChessSkool"]
[Black "Dubs123"]
[Result "1-0"]
[WhiteElo "2717"]
[BlackElo "2331"]
[TimeControl "180+1"]
[EndTime "14:17:10 PST"]
[Termination "ChessSkool won on time"]

1. d4 {[%clk 0:02:55.5]} 1... Nf6 {[%clk 0:02:58.5]} 2. Nf3 {[%clk 0:02:55.5]}
2... e6 {[%clk 0:02:55.7]} 3. Bf4 {[%clk 0:02:55]} 3... Be7 {[%clk 0:02:54.3]}
4. e3 {[%clk 0:02:49.2]} 4... O-O {[%clk 0:02:53.2]} 5. h3 {[%clk 0:02:49.8]}
5... b6 {[%clk 0:02:51]} 6. a4 {[%clk 0:02:47.1]} 6... Bb7 {[%clk 0:02:44.6]} 7.
Be2 {[%clk 0:02:46.8]} 7... d6 {[%clk 0:02:44.5]} 8. O-O {[%clk 0:02:46.3]} 8...
Nbd7 {[%clk 0:02:43.5]} 9. a5 {[%clk 0:02:46.5]} 9... c5 {[%clk 0:02:41.7]} 10.
a6 {[%clk 0:02:34.1]} 10... Bc6 {[%clk 0:02:36.8]} 11. c4 {[%clk 0:02:34.3]}
11... Qc7 {[%clk 0:02:28.2]} 12. Nc3 {[%clk 0:02:34.1]} 12... cxd4 {[%clk
0:02:19.5]} 13. exd4 {[%clk 0:02:33.8]} 13... e5 {[%clk 0:02:13.7]} 14. Bh2
{[%clk 0:02:20.4]} 14... Rac8 {[%clk 0:01:58.1]} 15. d5 {[%clk 0:02:07]} 15...
Ba8 {[%clk 0:01:55.2]} 16. Nb5 {[%clk 0:02:07]} 16... Qb8 {[%clk 0:01:52.8]} 17.
b4 {[%clk 0:02:06.3]} 17... Rfd8 {[%clk 0:01:36.5]} 18. Ra3 {[%clk 0:02:03.7]}
18... e4 {[%clk 0:01:18.3]} 19. Nfd4 {[%clk 0:02:01.7]} 19... Ne5 {[%clk
0:01:17.2]} 20. Qb3 {[%clk 0:01:29.2]} 20... g6 {[%clk 0:01:01.3]} 21. Rd1
{[%clk 0:01:28.3]} 21... Bf8 {[%clk 0:00:55]} 22. Qa2 {[%clk 0:01:28]} 22... Rd7
{[%clk 0:00:46]} 23. Bf4 {[%clk 0:01:24.1]} 23... Re8 {[%clk 0:00:37.6]} 24. Re3
{[%clk 0:01:21.7]} 24... Nh5 {[%clk 0:00:31]} 25. Bxh5 {[%clk 0:01:08.5]} 25...
gxh5 {[%clk 0:00:31.9]} 26. Bxe5 {[%clk 0:01:09]} 26... Rxe5 {[%clk 0:00:32.8]}
27. Nc6 {[%clk 0:01:09.1]} 27... Bxc6 {[%clk 0:00:31.8]} 28. dxc6 {[%clk
0:01:10]} 28... Rde7 {[%clk 0:00:26.3]} 29. Nxd6 {[%clk 0:00:59.4]} 29... R7e6
{[%clk 0:00:22.6]} 30. Rg3+ {[%clk 0:00:53.9]} 30... Bg7 {[%clk 0:00:20.6]} 31.
Nb7 {[%clk 0:00:50]} 31... Re8 {[%clk 0:00:14.2]} 32. Rd7 {[%clk 0:00:41.1]}
32... R5e7 {[%clk 0:00:05.8]} 33. Qd2 {[%clk 0:00:28.9]} 33... Qe5 {[%clk
0:00:03.9]} 34. h4 {[%clk 0:00:21.8]} 34... Qa1+ {[%clk 0:00:02]} 35. Kh2 {[%clk
0:00:22]} 1-0